bitfinex/quotes_ETHUSD_20251019
["timestamp","ask_amount","ask_price","bid_price","bid_amount"]
[1760870701592,0.4489,3931.5,3931.4,2.54360916]
[1760870702325,0.70911442,3931.7,3931.6,2.54349374]
[1760870702622,0.26021442,3931.7,3931.6,2.54349374]
[1760870703035,0.04431442,3931.7,3931.6,2.54349374]
[1760870703223,0.001,3931.8,3931.7,2.54342905]
[1760870704524,0.001,3931.8,3931.7,13.94342905]
[1760870704702,0.001,3931.8,3931.7,16.32542133]
[1760870706414,0.001,3931.8,3931.7,11.4]
[1760870706592,0.4466,3931.8,3931.0,0.26021442]
[1760870706791,2.54349997,3931.6,3929.9,0.4716]
[1760870707016,2.54349997,3931.6,3929.4,2.77457201]
[1760870707017,0.47097441,3931.5,3930.0,2.617]
[1760870707217,0.47097441,3931.5,3930.2,11.4]
[1760870707218,2.54362313,3931.4,3930.2,11.4]
[1760870707417,0.001,3931.8,3930.2,11.4]
[1760870707418,0.2182,3930.3,3930.2,11.4]
[1760870707602,0.6615,3930.3,3930.2,11.4]
[1760870708219,0.6615,3930.3,3930.2,13.94439977]
[1760870708929,0.4433,3930.9,3930.2,11.4]
[1760870709134,0.2204,3930.7,3930.5,2.54418104]
[1760870709330,0.1966,3931.1,3930.2,11.4]
[1760870709495,0.6613,3931.1,3930.2,13.07830868]
[1760870709689,0.1264,3931.0,3930.5,2.5442023]
[1760870709891,0.5911,3931.0,3930.5,2.5442023]
[1760870710124,0.4647,3930.9,3930.6,2.544128]
[1760870710310,0.1264,3931.0,3930.6,2.544128]
[1760870710512,0.4647,3930.8,3930.6,2.544128]
[1760870710724,0.4647,3930.7,3930.6,2.544128]
[1760870711038,0.4647,3930.7,3930.3,2.6715203]
[1760870711039,0.4647,3930.7,3930.4,2.54426803]
[1760870711218,0.4647,3930.6,3930.4,2.54426803]
[1760870711532,0.4647,3930.5,3930.4,2.54426803]
[1760870712023,0.4647,3930.8,3930.5,2.54418362]
[1760870712228,0.4647,3930.7,3930.5,2.54418362]
[1760870712433,0.1264,3931.0,3930.6,2.54414057]
[1760870712598,0.1264,3931.0,3930.3,0.1272]
[1760870712799,0.02537441,3930.9,3930.2,11.4]
[1760870713001,0.1272,3930.7,3930.2,11.4]
[1760870713220,0.4647,3930.6,3930.3,2.54427173]
[1760870713531,0.4647,3930.5,3930.4,2.54426091]
[1760870714226,0.1272,3930.7,3930.4,2.54426091]
[1760870714598,0.4647,3930.6,3930.4,2.54426091]
[1760870714931,0.1272,3930.7,3930.2,11.4]
[1760870715132,0.1264,3930.9,3930.6,2.54410955]
[1760870715331,0.34047,3930.8,3930.6,2.54410955]
[1760870715515,0.34047,3930.8,3930.3,0.1272]
[1760870715516,0.4647,3930.7,3930.3,0.1272]
[1760870715695,0.4647,3930.7,3930.5,2.54618544]
[1760870716035,0.4647,3930.6,3930.5,0.002]
[1760870719509,0.34047,3930.8,3930.5,0.002]
[1760870719732,2.617,3930.7,3930.5,0.002]
[1760870719934,3.423917,3930.7,3930.5,0.002]
[1760870720315,0.342217,3930.7,3930.5,0.002]
[1760870720520,2.616,3930.8,3930.5,0.002]
[1760870720732,0.1272,3930.7,3930.6,2.54414084]
[1760870720949,0.1272,3930.7,3930.5,0.002]
[1760870721820,0.1272,3930.7,3930.5,2.54620333]
[1760870722249,0.1272,3930.7,3930.5,0.002]
[1760870722432,2.7442,3930.7,3930.5,0.002]
[1760870722833,2.7442,3930.7,3930.5,2.54618554]
[1760870723244,2.7442,3930.7,3930.5,0.002]
[1760870723424,3.2089,3930.7,3930.5,0.002]
[1760870723730,3.06762744,3930.7,3930.5,0.002]
[1760870723933,2.7442,3930.7,3930.5,0.002]
[1760870724136,2.7442,3930.7,3930.5,2.54620557]
[1760870724337,3.2089,3930.7,3930.5,0.002]
[1760870724547,2.7442,3930.7,3930.5,0.002]
[1760870724748,2.7442,3930.7,3930.5,2.54618514]
[1760870725050,0.1272,3930.7,3930.6,2.54414084]
[1760870725252,0.1272,3930.7,3930.5,0.002]
[1760870725457,2.7432,3930.7,3930.5,0.002]
[1760870725842,2.7432,3930.7,3930.5,2.5462023]
[1760870726037,2.7432,3930.7,3930.6,2.54414084]
[1760870726720,0.1272,3930.7,3930.6,2.54414084]
[1760870727243,0.1264,3931.5,3930.7,2.54407611]
[1760870727450,0.1264,3931.5,3931.4,2.54362313]
[1760870727451,2.7424,3931.5,3931.4,2.54362313]
[1760870728281,2.616,3931.5,3931.4,2.54362313]
[1760870728946,2.7424,3931.7,3931.4,2.54356627]
[1760870729659,2.7424,3931.7,3931.4,2.54361669]
[1760870729660,3.2059,3931.7,3931.4,2.54361669]
[1760870729877,3.2059,3931.7,3931.4,13.94361669]
[1760870730168,0.4635,3931.6,3931.4,11.4]
[1760870730366,3.08287,3931.7,3930.9,3.9944]
[1760870730529,2.7424,3931.7,3931.5,2.54354233]
[1760870731063,2.7424,3931.7,3931.6,2.54349374]
[1760870732448,0.1264,3931.7,3931.5,2.5435483]
[1760870732662,0.4662,3931.6,3931.3,13.94364544]
[1760870733170,0.1264,3931.7,3931.4,2.54360361]
[1760870733171,0.1274,3931.7,3931.4,2.54360361]
[1760870733380,0.4662,3931.6,3931.3,13.94367864]
[1760870733664,0.4662,3931.5,3931.3,11.4]
[1760870733866,0.1274,3931.7,3931.3,13.94363551]
[1760870734058,0.4662,3931.6,3931.3,13.94363551]
[1760870734443,0.1274,3931.7,3931.4,2.54360945]
[1760870734670,2.615,3931.6,3931.3,11.4]
[1760870735052,2.615,3931.6,3931.4,2.54362313]
[1760870735374,2.615,3931.6,3931.3,13.94368577]
[1760870735577,3.0738,3931.6,3931.3,13.94368396]
[1760870735886,0.4588,3931.5,3931.3,2.5436874]
[1760870736054,0.4588,3931.5,3931.0,2.54388196]
[1760870736055,0.1264,3931.3,3931.2,2.54375254]
[1760870737991,0.5852,3931.3,3931.0,11.4]
[1760870738154,0.4588,3931.2,3931.1,2.54381725]
[1760870738359,0.1264,3931.3,3931.2,2.54375254]
[1760870740380,2.7414,3931.3,3931.2,2.54375254]
[1760870740582,3.2002,3931.3,3930.9,11.4]
[1760870740959,2.7414,3931.3,3930.9,13.94394316]
[1760870741280,3.2002,3931.3,3931.1,2.54379848]
[1760870741475,0.4588,3931.2,3930.9,11.4]
[1760870742170,0.4588,3931.2,3930.9,13.9439228]
[1760870742377,1.00720164,3931.1,3930.7,3.868]
[1760870742566,0.1272,3930.8,3930.7,3.868]
[1760870742893,3.2,3930.8,3930.7,3.868]
[1760870743103,2.7412,3930.8,3930.7,3.868]
[1760870743689,2.7412,3930.8,3930.7,2.54407611]
[1760870744698,2.7412,3930.8,3930.5,2.54614439]
[1760870744898,2.7412,3930.8,3930.6,2.54412981]
[1760870745862,2.7412,3930.8,3930.6,2.54412195]
[1760870746201,2.7412,3930.8,3930.7,2.54407611]
[1760870746497,2.7412,3930.8,3930.6,2.54412802]
[1760870746694,2.7412,3930.8,3930.5,2.54616225]
[1760870746886,2.7412,3930.8,3930.6,2.54413106]
[1760870747404,2.7412,3930.8,3930.5,0.002]
[1760870747704,0.4588,3930.7,3930.5,0.002]
[1760870748501,0.4588,3930.6,3930.5,0.002]
[1760870748870,1.00742274,3930.6,3930.5,0.002]
[1760870749771,3.55156358,3930.6,3930.5,0.002]
[1760870753597,3.65355223,3930.6,3930.5,0.002]
[1760870753797,4.56466197,3930.6,3930.5,0.002]
[1760870756003,4.60898601,3930.6,3930.5,0.002]
[1760870757710,4.56466197,3930.6,3930.5,0.002]
[1760870759589,4.46267332,3930.6,3930.5,0.002]
[1760870759988,5.09627332,3930.6,3930.5,0.002]
[1760870760286,6.82427332,3930.6,3930.5,0.002]
[1760870760683,7.25363277,3930.6,3930.5,0.002]
[1760870763276,6.70501003,3930.6,3930.5,0.002]
[1760870763481,7.25232878,3930.6,3930.5,0.002]
[1760870765702,7.25232878,3930.6,3930.2,0.002]
[1760870765703,3.17793503,3930.3,3930.2,0.002]
[1760870765905,9.51123912,3930.3,3930.2,0.002]
[1760870766230,10.37402416,3930.3,3930.2,0.002]
[1760870766791,4.90599977,3930.2,3930.1,1e-08]
[1760870767090,6.00987797,3930.2,3930.1,1e-08]
[1760870767420,6.46867797,3930.2,3930.1,1e-08]
[1760870767720,7.77767388,3930.2,3930.1,1e-08]
[1760870770910,4.90625876,3929.8,3929.7,0.002]
[1760870771106,8.52131137,3929.8,3929.7,0.002]
[1760870771296,8.92823696,3929.8,3929.7,0.002]
[1760870771646,8.92823696,3929.8,3929.0,0.002]
[1760870771647,4.90671211,3929.1,3929.0,0.002]
[1760870771797,8.83757875,3929.1,3929.0,0.002]
[1760870772002,9.24450434,3929.1,3929.0,0.002]
[1760870772215,9.67386379,3929.1,3929.0,0.002]
[1760870772620,9.67386379,3929.1,3927.3,0.6611]
[1760870772621,0.6336,3928.5,3927.3,0.6611]
[1760870772824,4.70254606,3929.0,3927.4,0.4379]
[1760870772825,3.09294315,3928.4,3927.4,0.4379]
[1760870773006,0.74517348,3929.1,3927.5,2.54614894]
[1760870773007,0.54731875,3928.3,3927.5,2.54614894]
[1760870773207,0.6336,3928.9,3928.2,0.2232]
[1760870773514,1.728,3928.5,3928.3,0.4379]
[1760870773718,2.54549619,3928.6,3928.2,0.2232]
[1760870773719,3.16031875,3928.4,3928.2,0.2232]
[1760870774047,2.613,3928.4,3928.2,0.2232]
[1760870774200,4.341,3928.4,3928.3,0.4379]
[1760870774534,4.88752029,3928.4,3928.3,0.4379]
[1760870775398,5.63336023,3928.4,3928.3,0.4379]
[1760870776908,8.17892585,3928.4,3928.2,0.2232]
[1760870777240,2.90812029,3928.3,3927.6,0.4379]
[1760870777440,2.2998947,3928.2,3927.7,0.4379]
[1760870777736,2.54600634,3927.8,3927.3,0.6611]
[1760870777939,2.54600634,3927.8,3927.4,0.4379]
[1760870777940,3.1838947,3927.7,3927.4,0.4379]
[1760870778103,3.1838947,3927.7,3927.3,0.2232]
[1760870778104,5.18339456,3927.7,3927.5,0.4379]
[1760870778304,5.15802015,3927.7,3927.5,0.4379]
[1760870778501,5.15802015,3927.7,3927.0,0.2324]
[1760870778502,1.20542418,3927.6,3927.0,0.2324]
[1760870778716,3.00965242,3927.5,3927.0,0.6703]
[1760870779043,0.54644977,3927.4,3927.1,0.4379]
[1760870779406,2.63737441,3927.3,3927.1,0.4379]
[1760870779833,0.02537441,3927.3,3927.2,0.4379]
[1760870780038,2.612,3927.3,3927.2,0.4379]
[1760870781318,2.612,3927.3,3927.0,0.2324]
[1760870781642,0.02537441,3927.2,3927.1,0.4379]
[1760870781852,2.63837441,3927.2,3927.1,0.4379]
[1760870782763,2.613,3927.2,3927.1,0.4379]
[1760870784034,2.63837441,3927.2,3927.1,0.4379]
[1760870784536,0.1272,3927.1,3927.0,0.2324]
[1760870785054,0.1272,3927.1,3927.0,0.6703]
[1760870785755,0.1272,3927.1,3926.8,0.2232]
[1760870785756,0.15257441,3927.1,3926.8,0.2232]
[1760870785966,0.02537441,3927.1,3927.0,0.4379]
[1760870786453,0.1272,3927.0,3926.8,0.2232]
[1760870786645,2.63837441,3926.9,3926.8,0.2232]
[1760870787361,0.1272,3926.8,3926.6,0.4379]
[1760870787570,0.02537441,3926.7,3926.6,0.4379]
[1760870788222,0.02537441,3926.7,3926.3,0.2232]
[1760870788423,0.54684141,3926.6,3926.3,0.2232]
[1760870788646,2.63737441,3926.5,3926.3,0.2252]
[1760870788864,2.63737441,3926.5,3926.3,0.6631]
[1760870789151,2.63737441,3926.5,3926.3,0.002]
[1760870789350,0.54710412,3926.4,3926.3,0.002]
[1760870790459,0.54710412,3926.4,3926.3,2.98682713]
[1760870790674,2.612,3926.4,3926.3,0.4399]
[1760870790959,3.1589849,3926.4,3926.3,0.002]
[1760870791125,0.6336,3927.4,3926.6,2.54672175]
[1760870791325,1.728,3927.2,3926.7,0.4379]
[1760870791562,0.57230293,3927.1,3926.8,0.4379]
[1760870791765,0.54692852,3927.0,3926.6,2.54671819]
[1760870791936,0.02537441,3927.1,3926.9,0.4379]
[1760870792134,3.15905663,3927.0,3926.9,0.4379]
[1760870792645,3.15905663,3927.0,3926.6,0.4379]
[1760870792846,0.57243104,3926.9,3926.5,2.54677511]
[1760870793059,0.54705663,3926.8,3926.7,0.4379]
[1760870793443,0.59142121,3926.8,3926.7,0.4379]
[1760870794540,3.20342121,3926.8,3926.7,0.4379]
[1760870795704,3.20342121,3926.8,3926.5,2.54678371]
[1760870795849,0.57243104,3926.7,3926.5,2.54678371]
[1760870796053,0.02537441,3926.7,3926.6,0.4381]
[1760870796254,0.84129827,3926.7,3926.3,0.002]
[1760870796485,3.15974996,3926.6,3926.3,0.002]
[1760870796683,0.57312437,3926.5,3926.3,0.002]
[1760870796889,0.54774996,3926.4,3926.3,0.002]
[1760870797554,0.59211569,3926.4,3926.3,0.002]
[1760870798062,0.94188209,3926.4,3926.3,0.002]
[1760870798596,3.20411569,3926.4,3926.3,2.98702713]
[1760870799773,0.59211569,3926.4,3926.3,2.98702713]
[1760870800194,3.20411569,3926.4,3926.3,2.98702713]
[1760870800677,0.59211569,3926.4,3926.3,2.98702713]
[1760870800997,0.04436573,3926.4,3926.3,2.98702713]
[1760870801157,0.04436573,3926.4,3926.3,3.57672906]
[1760870801589,2.1562,3927.0,3926.9,2.5464933]
[1760870801888,0.67598345,3927.0,3926.9,2.5464933]
[1760870802089,0.67598345,3927.0,3926.9,2.9845933]
[1760870802868,0.54878345,3927.0,3926.9,2.9845933]
[1760870807178,2.611,3927.3,3926.9,2.9845933]
[1760870807179,0.1272,3927.5,3927.1,2.54640829]
[1760870807383,0.001,3928.2,3927.8,2.54595447]
[1760870807384,2.611,3927.9,3927.8,2.54595447]
[1760870807580,3.2875229,3927.9,3927.8,2.54595447]
[1760870808079,3.2875229,3927.9,3927.8,2.98405447]
[1760870808475,3.2875229,3927.9,3927.8,2.54595447]
[1760870808710,3.2875229,3927.9,3927.3,10.9]
[1760870808711,3.8658229,3927.9,3927.3,10.9]
[1760870808910,0.1272,3927.3,3927.0,3.868]
[1760870809208,0.5493229,3927.2,3927.1,2.54640829]
[1760870809394,0.1272,3927.3,3927.2,2.54634345]
[1760870809598,0.67620953,3927.3,3927.0,2.54645095]
[1760870809807,2.611,3927.5,3927.0,2.54643087]
[1760870809808,0.1272,3927.1,3927.0,2.54643087]
[1760870809980,0.1272,3927.1,3927.0,2.98453087]
[1760870810307,3.15993015,3927.4,3927.0,0.4381]
[1760870810506,0.50820612,3927.9,3927.6,2.54608314]
[1760870810681,0.50820612,3927.9,3927.5,2.54613738]
[1760870810682,3.15994263,3927.8,3927.5,2.54613738]
[1760870810880,0.54894263,3927.7,3927.5,2.54613738]
[1760870811101,0.54894263,3927.6,3927.5,2.54613738]
[1760870811800,3.15994263,3927.6,3927.5,2.98423738]
[1760870812409,2.611,3927.6,3927.5,2.98423738]
[1760870813386,0.04435383,3927.9,3927.5,2.98424553]
[1760870813717,0.1272,3927.6,3927.5,2.54614553]
[1760870814088,2.78155383,3927.9,3927.8,2.54595447]
[1760870814288,3.33016271,3927.9,3927.8,2.54595447]
[1760870814908,0.59296271,3927.9,3927.8,2.98405447]
[1760870815111,0.04435383,3927.9,3927.8,2.98405447]
[1760870816293,0.04435383,3927.9,3927.8,2.54595447]
[1760870821201,0.04435383,3927.9,3927.6,10.9]
[1760870821418,0.17155383,3927.9,3927.6,2.54606581]
[1760870821821,0.17155383,3927.9,3927.8,2.54595447]
[1760870826434,0.17155383,3927.9,3927.7,2.54598924]
[1760870826650,0.17155383,3927.9,3927.5,2.54608902]
[1760870826817,0.61175383,3927.9,3927.6,2.54607357]
[1760870827229,0.46257441,3927.8,3926.9,2.98500881]
[1760870827432,0.1272,3927.4,3927.2,2.54633963]
[1760870827732,0.5644,3927.4,3927.2,2.54633963]
[1760870827921,0.5644,3927.4,3927.3,2.54627861]
[1760870828123,0.1272,3927.4,3927.3,2.54627861]
[1760870828916,0.1272,3927.4,3927.2,2.54633028]
[1760870829500,0.4372,3927.3,3927.0,2.54643651]
[1760870829729,0.1272,3927.2,3927.0,2.54643651]
[1760870830533,0.1272,3927.2,3927.1,2.54640829]
[1760870831040,0.17155619,3927.2,3927.1,2.54640829]
[1760870831242,0.1272,3927.2,3927.1,2.54640829]
[1760870831741,0.1272,3927.2,3926.9,2.54651577]
[1760870831908,0.1272,3926.9,3926.8,2.54860231]
[1760870832208,0.1272,3926.9,3926.8,0.002]
[1760870832433,3.1724,3926.9,3926.8,0.002]
[1760870832657,3.52391144,3926.9,3926.8,0.002]
[1760870833056,0.1272,3926.9,3926.8,0.002]
[1760870833242,1.379,3927.2,3926.8,0.4379]
[1760870833450,0.1272,3927.7,3927.6,2.54608412]
[1760870833647,0.1272,3927.7,3927.6,2.98198412]
[1760870834664,0.57380101,3927.7,3926.8,2.61]
[1760870834866,0.54843356,3927.6,3926.8,2.61]
[1760870835032,0.02537441,3927.7,3927.4,2.54615281]
[1760870835370,0.54838402,3927.6,3927.4,2.54615281]
[1760870835574,0.02537441,3927.7,3927.4,2.54615281]
[1760870835870,0.97960485,3927.6,3926.8,0.002]
[1760870836038,0.57367926,3927.5,3926.8,0.002]
[1760870836236,0.54830485,3927.4,3926.9,2.54647326]
[1760870836437,0.4313,3927.4,3927.0,2.54642104]
[1760870836861,2.608,3927.3,3927.1,2.54640325]
[1760870837037,2.608,3927.3,3927.0,2.54643257]
[1760870837649,2.608,3927.3,3926.9,2.54648279]
[1760870837853,2.608,3927.3,3927.0,2.54645985]
[1760870838175,2.65235914,3927.3,3927.2,2.54634345]
[1760870838739,0.04435914,3927.3,3927.1,2.54640812]
[1760870838957,2.65235914,3927.3,3927.1,2.54640812]
[1760870839153,2.65235914,3927.3,3926.9,2.54653006]
[1760870839358,2.65235914,3927.3,3926.8,0.002]
[1760870839557,0.4313,3927.2,3926.8,0.002]
[1760870839840,0.4313,3927.2,3927.0,2.54646947]
[1760870840165,2.65235914,3927.3,3927.0,2.54646947]
[1760870840476,2.65235914,3927.3,3926.8,0.002]
[1760870840655,0.04435914,3927.3,3927.2,2.54634345]
[1760870840845,2.65235914,3927.3,3927.2,2.54634345]
[1760870841048,3.1566748,3927.3,3927.2,2.54634345]
[1760870841258,2.608,3927.3,3926.8,2.98444277]
[1760870841454,2.608,3927.3,3927.0,2.54646013]
[1760870841659,0.45667441,3927.7,3927.0,2.54646013]
[1760870841860,0.4313,3927.5,3926.8,0.002]
[1760870842062,0.57417897,3927.4,3926.9,2.54653223]
[1760870842277,0.54880456,3927.3,3927.0,2.54644313]
[1760870842480,2.608,3927.2,3927.0,2.54644313]
[1760870843153,2.608,3927.2,3926.8,0.002]
[1760870843356,0.4313,3928.1,3927.1,0.2258]
[1760870843657,3.15666607,3927.8,3927.6,2.54607978]
[1760870843857,0.54866607,3927.7,3927.6,2.54607978]
[1760870844175,0.57404048,3927.7,3927.3,2.5462179]
[1760870844364,1.00786607,3927.6,3926.8,0.002]
[1760870844556,0.93816453,3927.5,3927.0,2.54642192]
[1760870844751,0.1272,3927.1,3927.0,2.54642192]
[1760870844968,0.1272,3927.1,3926.9,2.54652469]
[1760870845373,0.1272,3927.1,3927.0,2.54647313]
[1760870845578,0.1272,3927.1,3927.0,2.98237313]
[1760870847877,2.607,3927.3,3927.2,2.54634345]
[1760870848077,3.28319494,3927.3,3927.2,2.54634345]
[1760870853393,3.2837979,3927.3,3927.2,2.54634345]
[1760870857001,3.2837979,3927.3,3927.0,0.002]
[1760870857200,0.5495979,3927.2,3927.0,0.002]
[1760870857395,0.5495979,3927.1,3927.0,0.002]
[1760870858386,3.1555979,3927.1,3927.0,0.002]
[1760870858902,0.5495979,3927.1,3927.0,0.002]
[1760870859088,3.1555979,3927.1,3927.0,0.002]
[1760870859294,3.1555979,3927.1,3927.0,2.54847313]
[1760870860502,0.5495979,3927.1,3927.0,2.54847313]
[1760870860803,3.1555979,3927.1,3927.0,2.54847313]
[1760870862804,2.606,3927.1,3927.0,2.54847313]
[1760870866714,0.76541449,3928.0,3927.0,0.94383474]
[1760870866878,2.606,3927.9,3927.1,0.2157]
[1760870867212,3.1811,3927.9,3927.6,2.54606564]
[1760870867399,0.4455,3927.8,3927.6,2.54606564]
[1760870868413,0.1272,3927.7,3927.6,2.54606564]
[1760870870101,0.1272,3927.7,3927.6,3.01546564]
[1760870870615,0.1272,3927.9,3927.8,2.54595447]
[1760870871004,2.7322,3927.9,3927.8,2.54595447]
[1760870871606,0.001,3928.2,3928.1,2.54576003]
[1760870871916,0.001,3928.2,3928.1,2.76506003]
[1760870872228,0.001,3928.2,3928.1,3.23446003]
[1760870873218,0.001,3928.2,3928.1,5.83946003]
[1760870873418,0.001,3928.2,3928.1,5.15076003]
[1760870873830,0.001,3928.2,3928.1,5.62016003]
[1760870874029,0.001,3928.2,3928.1,5.15076003]
[1760870874419,0.001,3928.2,3928.1,6.02297517]
[1760870874621,0.001,3928.2,3928.1,6.71167517]
[1760870875000,0.001,3928.2,3928.1,6.24227517]
[1760870875207,0.001,3928.2,3928.1,2.54576003]
[1760870875534,0.4384,3928.2,3927.2,0.4694]
[1760870875707,0.4384,3928.2,3927.7,2.54596234]
[1760870875903,0.4374,3928.1,3927.7,2.54596234]
[1760870876108,0.001,3928.2,3927.7,2.54596234]
[1760870876308,0.4374,3928.1,3927.4,1.728]
[1760870876733,0.04535087,3928.2,3927.5,0.4694]
[1760870876917,0.04535087,3928.2,3927.9,2.54587723]
[1760870877117,0.04535087,3928.2,3927.8,2.54590029]
[1760870877311,0.04535087,3928.2,3927.9,2.5458676]
[1760870877511,0.48275087,3928.2,3927.9,2.5458676]
[1760870877713,0.001,3928.2,3927.9,2.5458676]
[1760870877907,0.4384,3928.2,3928.0,2.54581423]
[1760870878847,0.001,3928.2,3928.1,2.54576003]
[1760870879232,0.001,3928.2,3927.6,2.54608412]
[1760870879535,0.001,3928.2,3927.9,2.54588639]
[1760870879714,0.001,3928.2,3927.4,1.728]
[1760870880045,0.001,3928.2,3927.9,2.54583743]
[1760870880225,0.001,3928.2,3927.8,2.54595447]
[1760870880413,0.001,3928.2,3927.9,2.54586994]
[1760870881013,0.4384,3928.2,3927.9,2.54588535]
[1760870881213,0.4384,3928.2,3927.7,2.54600977]
[1760870881442,0.4384,3928.2,3927.9,2.54585227]
[1760870881649,0.1272,3928.0,3927.9,2.54585227]
[1760870882016,0.1272,3928.0,3927.9,2.54588966]
[1760870882937,0.1272,3928.0,3927.8,2.54591886]
[1760870883138,0.1272,3928.0,3927.4,2.54621378]
[1760870883344,0.5646,3928.0,3927.3,2.7312]
[1760870883735,0.5646,3928.0,3927.6,2.54603482]
[1760870884460,0.5646,3928.0,3927.7,2.5460007]
[1760870885140,0.1272,3928.0,3927.3,2.7312]
[1760870885357,0.1272,3928.0,3927.7,2.54597172]
[1760870886256,0.1272,3928.0,3927.3,3.1902]
[1760870886457,0.1272,3928.0,3927.4,0.459]
[1760870886627,0.1272,3928.0,3927.7,2.54601893]
[1760870886824,0.1272,3928.0,3927.3,0.1272]
[1760870887028,0.1272,3927.7,3927.5,2.54613317]
[1760870887254,0.1272,3927.7,3927.6,2.54608412]
[1760870887454,0.1272,3927.7,3927.2,3.868]
[1760870887658,0.5638,3927.7,3927.3,2.54627784]
[1760870887961,0.5638,3927.7,3927.5,2.54608886]
[1760870888258,0.1272,3927.7,3927.5,2.54608886]
[1760870888759,0.1272,3927.7,3927.4,2.54620473]
[1760870889263,0.1272,3927.7,3927.2,4.327]
[1760870889552,0.1272,3927.7,3927.6,2.54608412]
[1760870889862,0.1272,3927.7,3927.6,2.54808412]
[1760870890047,0.1272,3927.7,3927.6,0.002]
[1760870890254,0.5638,3927.7,3927.6,0.002]
[1760870890427,0.90065744,3927.7,3927.6,0.002]
[1760870893573,3.44667673,3927.7,3927.6,0.002]
[1760870894079,3.47205114,3927.7,3927.6,0.002]
[1760870894378,5.93572411,3927.7,3927.6,0.002]
[1760870894544,5.9103497,3927.7,3927.6,0.002]
[1760870895578,5.9103497,3927.7,3927.2,1e-08]
[1760870895579,4.90787861,3927.3,3927.2,1e-08]
[1760870895724,7.53625302,3927.3,3927.2,1e-08]
[1760870895928,7.94747861,3927.3,3927.2,1e-08]
[1760870896140,5.34447861,3927.3,3927.2,1e-08]
[1760870896375,7.94747861,3927.3,3927.2,1e-08]
[1760870896535,9.10920154,3927.3,3927.2,1e-08]
[1760870898262,9.15357578,3927.3,3927.2,1e-08]
[1760870901834,9.10920154,3927.3,3927.2,1e-08]
[1760870903172,6.50620154,3927.3,3927.2,1e-08]
[1760870903336,9.10920154,3927.3,3927.2,1e-08]
[1760870904047,9.21130213,3927.3,3927.2,1e-08]
[1760870904656,2.54640829,3927.1,3927.0,1e-08]
[1760870904862,5.24884187,3927.1,3927.0,1e-08]
[1760870905071,5.78726746,3927.1,3927.0,1e-08]
[1760870905267,5.88938108,3927.1,3927.0,1e-08]
[1760870906040,5.57392191,3927.1,3927.0,1e-08]
[1760870906240,6.88842737,3927.1,3927.0,1e-08]
[1760870906663,9.49142737,3927.1,3927.0,1e-08]
[1760870907375,6.88842737,3927.1,3927.0,1e-08]
[1760870907596,9.49142737,3927.1,3927.0,1e-08]
[1760870909504,9.05482737,3927.1,3927.0,1e-08]
[1760870910818,6.45182737,3927.1,3927.0,1e-08]
[1760870910964,9.05482737,3927.1,3927.0,1e-08]
[1760870912496,9.49142737,3927.1,3927.0,1e-08]
[1760870916384,9.05382737,3927.1,3927.0,1e-08]
[1760870916924,9.49042737,3927.1,3927.0,1e-08]
[1760870917391,6.88842737,3927.1,3927.0,1e-08]
[1760870917589,9.05382737,3927.1,3927.0,1e-08]
[1760870917827,6.45182737,3927.1,3927.0,1e-08]
[1760870917991,9.05382737,3927.1,3927.0,1e-08]
[1760870919025,8.92662737,3927.1,3927.0,1e-08]
[1760870923739,3.77821908,3927.1,3927.0,1e-08]
[1760870923892,5.06571362,3927.1,3927.0,0.45210001]
[1760870924415,2.46471362,3927.1,3927.0,0.45210001]
[1760870924739,4.43311362,3927.1,3927.0,0.45210001]
[1760870925385,7.63849632,3927.1,3927.0,1e-08]
[1760870925591,8.67536027,3927.1,3927.0,1e-08]
[1760870926522,9.11196027,3927.1,3927.0,1e-08]
[1760870926728,8.67536027,3927.1,3927.0,1e-08]
[1760870926923,5.0352839,3927.0,3926.8,0.002]
[1760870927156,0.02537441,3926.9,3926.8,0.002]
[1760870927355,1.53348681,3926.9,3926.8,0.002]
[1760870927868,6.26212479,3926.9,3926.8,0.002]
[1760870928172,6.67335038,3926.9,3926.8,0.002]
[1760870928578,3.6902124,3926.9,3926.8,0.002]
[1760870928742,3.71558681,3926.9,3926.8,0.002]
[1760870930748,3.71558681,3926.9,3926.8,0.4356]
[1760870931146,3.71558681,3926.9,3926.8,0.002]
[1760870932073,6.26212479,3926.9,3926.8,0.002]
[1760870932279,3.6902124,3926.9,3926.8,0.002]
[1760870932482,3.71558681,3926.9,3926.8,0.002]
[1760870933554,6.26212479,3926.9,3926.8,0.002]
[1760870933886,6.23675038,3926.9,3926.8,0.002]
[1760870934189,6.67335038,3926.9,3926.8,0.002]
[1760870934492,6.23675038,3926.9,3926.8,0.002]
[1760870935091,6.2912124,3926.9,3926.8,0.002]
[1760870935299,6.2912124,3926.9,3926.8,0.4356]
[1760870936580,6.2912124,3926.9,3926.8,0.002]
[1760870940184,8.83775038,3926.9,3926.8,0.002]
[1760870940483,9.27435038,3926.9,3926.8,0.002]
[1760870940684,4.90826768,3926.7,3926.6,0.002]
[1760870940867,6.33280981,3926.7,3926.6,0.002]
[1760870941068,6.7440354,3926.7,3926.6,0.002]
[1760870941588,7.05949457,3926.7,3926.6,0.002]
[1760870943173,7.35414055,3926.7,3926.6,0.002]
[1760870943376,3.1803974,3926.5,3926.4,0.002]
[1760870943571,10.98893684,3926.5,3926.4,0.002]
[1760870943771,11.67852532,3926.5,3926.4,0.002]
[1760870943963,12.11512532,3926.5,3926.4,0.002]
[1760870944403,9.82285409,3926.5,3926.4,0.002]
[1760870944558,7.22285409,3926.5,3926.4,0.002]
[1760870944764,2.19599752,3926.5,3926.4,0.002]
[1760870944963,2.6,3926.5,3926.4,0.4519]
[1760870946291,4.328,3926.5,3926.4,0.4519]
[1760870946496,4.9616,3926.5,3926.4,0.002]
[1760870946794,4.98697441,3926.5,3926.4,0.4519]
[1760870947372,7.53377181,3926.5,3926.4,0.002]
[1760870947559,8.52088825,3926.5,3926.4,0.002]